bitfinex-derivatives/quotes_SOLF0:USTF0_20240815
["timestamp","ask_amount","ask_price","bid_price","bid_amount"]
[1723716184047,33.71,142.22,142.13,42.0751]
[1723716184345,33.71,142.22,142.17,3.5163]
[1723716184843,0.04826592,142.21,142.18,0.05069359]
[1723716185548,3.5156,142.2,142.18,0.05069359]
[1723716190052,3.5158,142.19,142.18,0.05069359]
[1723716190652,3.5166,142.16,142.09,33.71]
[1723716191047,3.5166,142.16,142.12,3.5174]
[1723716191748,3.5166,142.16,142.13,0.04850306]
[1723716191749,0.0480679,142.15,142.13,0.04850306]
[1723716192547,3.5649679,142.15,142.13,0.04850306]
[1723716194154,0.0480679,142.15,142.13,0.04850306]
[1723716194847,0.0480679,142.15,142.13,3.56580306]
[1723716195054,0.0480679,142.15,142.13,0.04850306]
[1723716196452,0.0480679,142.15,142.14,3.5171]
[1723716199457,3.5153,142.22,142.18,3.5161]
[1723716199661,7.9553,142.22,142.18,3.5161]
[1723716200760,7.9553,142.22,142.19,0.05183645]
[1723716200761,3.56694572,142.21,142.19,0.05183645]
[1723716202067,37.2256,142.2,142.19,0.05183645]
[1723716204950,3.5161,142.18,142.15,3.5167]
[1723716205354,7.9561,142.18,142.15,3.5167]
[1723716206355,3.5163,142.17,142.15,3.56143451]
[1723716206564,38.19796806,142.18,142.15,0.04473451]
[1723716206962,3.5166,142.16,142.15,0.04473451]
[1723716208967,33.71,142.17,142.05,4.44]
[1723716209159,33.71,142.14,142.06,3.46103552]
[1723716209569,3.5176,142.12,142.08,3.5184]
[1723716210165,0.05330064,142.11,142.08,3.5184]
[1723716210360,0.05330064,142.11,142.03,3.9653]
[1723716210757,3.5182,142.1,142.06,3.5189]
[1723716210965,0.05330064,142.11,142.03,3.9653]
[1723716211164,33.71,142.1,142.03,3.9653]
[1723716211366,3.5187,142.08,142.04,3.5194]
[1723716212369,3.5187,142.08,142.05,3.5193]
[1723716212763,3.5187,142.08,142.03,3.9653]
[1723716213056,0.04915805,142.07,142.03,3.9653]
[1723716213261,0.04915805,142.07,142.04,3.5194]
[1723716213565,0.04915805,142.07,142.03,3.9653]
[1723716214258,0.04915805,142.07,142.06,3.519]
[1723716214668,0.04915805,142.07,142.06,3.499]
[1723716222470,0.04915805,142.07,141.93,7.0443]
[1723716222675,0.04915805,142.07,141.99,36.2027]
[1723716222970,0.05362869,142.04,142.02,3.5199]
[1723716223164,0.05362869,142.04,141.99,3.59339062]
[1723716223675,0.05362869,142.04,141.99,3.5206]
[1723716224076,3.57322869,142.04,142.0,3.5205]
[1723716224269,3.57322869,142.04,141.94,6.9673]
[1723716224270,0.05362869,142.04,141.99,33.71]
[1723716224465,7.0075,142.09,141.99,33.71]
[1723716224664,0.05254123,142.03,142.0,3.5205]
[1723716224868,3.5195,142.05,141.99,35.0088]
[1723716225178,0.05009216,142.02,142.0,3.45033436]
[1723716225582,0.05009216,142.02,142.01,37.2303]
[1723716225785,0.05009216,142.02,142.01,39.8365]
[1723716226077,3.5189,142.07,142.03,3.5198]
[1723716226575,3.5189,142.07,142.01,36.3162]
[1723716226576,3.5189,142.07,142.04,3.5195]
[1723716226779,3.5187,142.08,142.04,3.5195]
[1723716227386,0.04974921,142.07,142.05,0.0496674]
[1723716227583,3.56854921,142.07,142.05,0.0496674]
[1723716228283,0.04974921,142.07,142.05,0.0496674]
[1723716228890,3.56854921,142.07,142.05,0.0496674]
[1723716229287,0.04974921,142.07,142.05,0.0496674]
[1723716230189,3.56864921,142.07,142.05,0.0496674]
[1723716230588,3.519,142.06,142.05,0.0496674]
[1723716233586,38.21974921,142.07,141.96,33.71]
[1723716233793,33.71,142.04,141.97,8.00663301]
[1723716234090,33.71,142.04,141.98,3.5208]
[1723716234091,3.5202,142.02,141.98,3.5208]
[1723716234392,33.71,142.0,141.9,4.46]
[1723716234592,3.5213,141.97,141.92,3.5223]
[1723716234788,3.5213,141.97,141.89,41.69387975]
[1723716235189,33.71,141.95,141.74,10.89738516]
[1723716235390,0.04729938,141.96,141.88,33.71]
[1723716235590,7.0643,141.98,141.88,33.71]
[1723716235884,0.05110458,141.93,141.9,33.71]
[1723716236200,0.05110458,141.93,141.89,2.5969]
[1723716236201,0.05110458,141.93,141.92,3.5225]
[1723716236799,33.71,142.01,141.93,3.5221]
[1723716237296,3.5211,141.98,141.93,3.5221]
[1723716237493,33.71,142.01,141.91,38.17]
[1723716237694,33.71,142.01,141.92,1.3668]
[1723716237886,0.04792259,141.97,141.95,0.05010072]
[1723716238991,0.04792259,141.97,141.95,3.57170072]
[1723716239502,0.04792259,141.97,141.95,0.05010072]
[1723716241397,0.04792259,141.97,141.95,3.57170072]
[1723716241800,0.04792259,141.97,141.95,0.05010072]
[1723716241997,0.04792259,141.97,141.96,3.5215]
[1723716243003,36.3916,142.05,141.99,3.5207]
[1723716243205,2.6816,142.05,141.97,4.46]
[1723716243401,3.5197,142.04,141.97,4.46]
[1723716243597,3.5197,142.04,141.99,3.5206]
[1723716243902,3.5197,142.04,141.97,4.46]
[1723716244101,0.05385845,142.03,142.0,0.04867538]
[1723716245400,0.05385845,142.03,142.0,3.56917538]
[1723716246404,0.05385845,142.03,142.0,0.04867538]
[1723716247901,3.57385845,142.03,142.0,0.04867538]
[1723716248101,0.05385845,142.03,142.0,0.04867538]
[1723716248406,33.76385845,142.03,142.0,0.04867538]
[1723716248709,3.5203,142.01,142.0,0.04867538]
[1723716252902,3.5201,142.02,142.0,0.04867538]
[1723716253103,0.05385845,142.03,142.0,0.04867538]
[1723716253810,33.76385845,142.03,142.0,0.04867538]
[1723716253999,3.5202,142.02,142.0,0.04867538]
[1723716255704,3.57365845,142.03,142.0,3.56907538]
[1723716255907,0.05385845,142.03,142.0,0.04867538]
[1723716256914,3.57385845,142.03,142.0,3.56907538]
[1723716259908,3.57385845,142.03,142.0,0.04867538]
[1723716260109,0.05385845,142.03,142.0,0.04867538]
[1723716261113,3.5202,142.02,142.0,0.04867538]
[1723716262014,3.5203,142.01,142.0,0.04867538]
[1723716262815,3.5202,142.02,142.0,0.04867538]
[1723716263714,0.05385845,142.03,142.0,0.04867538]
[1723716263915,13.57385845,142.03,142.0,0.04867538]
[1723716264413,3.5202,142.02,142.0,0.04867538]
[1723716265211,3.5203,142.01,142.0,0.04867538]
[1723716265413,17.0403,142.01,142.0,0.04867538]
[1723716266218,3.521,141.98,141.96,3.5214]
[1723716266920,3.521,141.98,141.95,3.5216]
[1723716267111,13.52,141.99,141.95,3.5216]
[1723716267313,13.52,141.99,141.95,3.57237655]
[1723716267314,0.04809059,141.98,141.95,3.57237655]
[1723716267514,0.04809059,141.98,141.95,0.05077655]
[1723716269116,3.56919059,141.98,141.95,0.05077655]
[1723716272317,3.56919059,141.98,141.95,3.57247655]
[1723716273830,3.5214,141.97,141.95,0.05077655]
[1723716274226,13.52,141.96,141.95,0.05077655]
[1723716274533,17.0415,141.96,141.95,0.05077655]
[1723716279432,13.52,141.96,141.8,12.9288343]
[1723716279642,13.52,141.9,141.83,13.52]
[1723716279838,21.6031,141.9,141.87,3.5236]
[1723716280040,2.6327,141.95,141.86,13.52]
[1723716280234,18.08,141.94,141.87,13.52]
[1723716280434,3.5226,141.92,141.89,3.523]
[1723716280632,13.52,141.91,141.85,3.46959983]
[1723716280830,13.57294868,141.92,141.86,13.52]
[1723716281032,13.57294868,141.92,141.89,3.5231]
[1723716281233,13.57294868,141.92,141.86,13.52]
[1723716281436,13.52,141.92,141.86,13.52]
[1723716281732,17.0426,141.92,141.88,3.5233]
[1723716281937,0.04955837,141.9,141.88,3.5233]
[1723716282535,0.04955837,141.9,141.87,3.5236]
[1723716283344,0.04955837,141.9,141.88,3.5234]
[1723716283738,3.5233,141.89,141.85,3.5241]
[1723716283940,0.04955837,141.9,141.84,13.52]
[1723716284443,3.57265837,141.9,141.86,3.5238]
[1723716284748,3.5233,141.89,141.85,3.5239]
[1723716284942,0.04955837,141.9,141.84,13.52]
[1723716285442,0.04955837,141.9,141.86,3.5238]
[1723716286142,0.04955837,141.9,141.83,8.12155409]
[1723716286349,0.04955837,141.9,141.85,13.52]
[1723716286736,0.04955837,141.9,141.87,13.52]
[1723716287149,0.04955837,141.9,141.88,13.52]
[1723716287741,0.04955837,141.9,141.89,3.5232]
[1723716287939,13.52,141.96,141.89,13.52]
[1723716288137,13.52,141.98,141.91,13.52]
[1723716288346,13.52,141.98,141.91,17.08014483]
[1723716288943,17.0411,141.98,141.93,3.522]
[1723716289137,4.56,142.0,141.92,13.52]
[1723716289346,0.04726306,141.96,141.95,3.5217]
[1723716289547,13.52,142.01,141.94,13.52]
[1723716289847,0.04584231,141.97,141.96,3.5214]
[1723716290242,17.0404,142.01,141.95,1.2807]
[1723716290447,0.05335163,141.98,141.95,1.33025837]
[1723716291949,0.05335163,141.98,141.97,3.5212]
[1723716294146,0.05335163,141.98,141.96,3.5214]
[1723716294837,0.05335163,141.98,141.95,4.85185837]
[1723716295037,13.57335163,141.98,141.95,0.04955837]
[1723716295242,0.05335163,141.98,141.95,0.04955837]
[1723716296247,0.05335163,141.98,141.97,3.5212]
[1723716301747,0.05335163,141.98,141.97,17.0412]
[1723716301950,13.52,142.04,141.99,3.5205]
[1723716302259,3.5198,142.03,141.99,3.5205]
[1723716302442,13.52,142.04,142.0,3.5204]
[1723716302953,0.04539288,142.03,142.01,0.04443149]
[1723716304551,0.04539288,142.03,142.01,3.56463149]
[1723716307552,0.04539288,142.03,142.02,3.52]
[1723716311153,13.56539288,142.03,142.01,0.04443149]
[1723716311461,3.52,142.02,142.01,0.04443149]
[1723716311655,17.04,142.02,142.01,0.04443149]
[1723716311851,3.52,142.02,142.01,0.04443149]
[1723716312055,17.08529288,142.03,142.01,0.04443149]
[1723716312250,13.56539288,142.03,142.01,0.04443149]
[1723716312454,17.04,142.02,142.01,0.04443149]
[1723716314864,3.52,142.02,142.01,0.04443149]
[1723716316059,8.12529288,142.03,142.01,0.04443149]
[1723716316461,3.56529288,142.03,142.01,0.04443149]
[1723716317054,0.04539288,142.03,142.01,0.04443149]
[1723716319162,3.56529288,142.03,142.01,0.04443149]
[1723716319572,0.04539288,142.03,142.01,0.04443149]
[1723716320366,37.31,142.02,142.01,0.04443149]
[1723716320867,3.5209,141.99,141.93,4.5]
[1723716321969,3.5209,141.99,141.95,3.5216]
[1723716322269,0.04884897,141.97,141.95,3.57525385]
[1723716322467,0.04884897,141.97,141.95,0.05365385]
[1723716322868,33.79,141.96,141.95,0.05365385]
[1723716323271,4.54884897,141.97,141.95,0.05365385]
[1723716323977,3.5215,141.96,141.95,0.05365385]
[1723716326068,0.04884897,141.97,141.95,0.05365385]
[1723716326268,0.04884897,141.97,141.96,3.5215]
[1723716326667,0.04884897,141.97,141.95,3.57525385]
[1723716327276,3.57014897,141.97,141.95,0.05365385]
[1723716328369,0.04884897,141.97,141.95,3.57535385]
[1723716328783,0.04884897,141.97,141.95,0.05365385]
[1723716329481,3.5215,141.96,141.95,0.05365385]
[1723716330378,37.3115,141.96,141.95,0.05365385]
[1723716333283,3.5215,141.96,141.95,0.05365385]
[1723716337187,3.57014897,141.97,141.95,0.05365385]
[1723716337386,8.07014897,141.97,141.95,0.05365385]
[1723716337885,3.5215,141.96,141.95,0.05365385]
[1723716341893,17.0515,141.96,141.95,0.05365385]
[1723716352901,17.05099792,141.96,141.89,3.5231]
[1723716353105,17.05099792,141.96,141.86,2.6799]
[1723716353106,3.52099792,141.96,141.86,2.6799]
[1723716353407,2.4897,141.98,141.87,13.53]
[1723716353711,13.53,141.94,141.89,13.53]
[1723716353908,2.4897,141.98,141.89,13.53]
[1723716354206,18.07,141.97,141.9,13.53]
[1723716354810,0.04693625,141.93,141.92,13.53]
[1723716355701,3.5217,141.96,141.92,17.0523]
[1723716355914,1.3096,142.01,141.92,13.53]
[1723716356106,1.3096,142.01,141.91,3.54812316]
[1723716356107,0.0476059,141.94,141.93,17.0522]
[1723716356411,4.54,141.98,141.92,3.8871]
[1723716356412,18.07,141.98,141.92,3.8871]
[1723716356910,0.04643402,141.95,141.92,3.8871]
[1723716357701,0.04643402,141.95,141.92,7.4095]
[1723716357903,0.04643402,141.95,141.92,1.2962]
[1723716358106,13.53,141.94,141.87,7.1184]
[1723716358303,13.53,141.92,141.87,2.5784]
[1723716358813,3.5229,141.91,141.87,6.102]
[1723716359211,0.04909071,141.92,141.87,16.1084]
[1723716359514,0.04909071,141.92,141.89,3.5231]
[1723716359808,0.04909071,141.92,141.87,16.1084]
[1723716360007,0.04909071,141.92,141.87,2.5784]
[1723716360203,13.53,141.91,141.81,4.54]
[1723716360411,3.523,141.9,141.86,3.5238]
[1723716360609,0.04767259,141.88,141.86,3.5238]
[1723716361210,0.04767259,141.88,141.87,3.5237]
[1723716361711,226.0,141.99,141.87,13.53]
[1723716361712,4.54,141.97,141.87,13.53]
[1723716361912,3.9368,142.01,141.91,13.53]
[1723716362109,3.5215,141.96,141.92,3.5224]
[1723716362510,13.53,141.98,141.91,13.53]
[1723716362715,13.53,141.98,141.93,3.5221]
[1723716362716,3.5212,141.97,141.93,3.5221]
[1723716362917,0.04943915,141.95,141.93,3.57400472]
[1723716363119,0.04943915,141.95,141.93,0.05190472]
[1723716363313,0.04943915,141.95,141.94,3.522]
[1723716363713,3.5206,142.0,141.96,3.5214]
[1723716364421,18.07,142.04,141.98,13.53]
[1723716364721,63.67186792,142.02,141.98,13.53]
[1723716364923,63.67186792,142.02,141.96,13.53]
[1723716364924,73.68176792,142.02,141.96,13.53]
[1723716365409,0.05386218,142.01,141.99,0.04998378]
[1723716366321,3.57406218,142.01,141.99,0.04998378]
[1723716366820,17.10406218,142.01,141.99,0.04998378]
[1723716367618,3.5205,142.0,141.99,0.04998378]
[1723716368018,17.0505,142.0,141.99,0.04998378]
[1723716369528,21.5905,142.0,141.99,0.04998378]
[1723716369918,8.0605,142.0,141.99,0.04998378]
[1723716374016,3.57426218,142.01,141.99,0.04998378]
[1723716374216,0.05386218,142.01,141.99,0.04998378]
[1723716374523,3.57426218,142.01,141.99,0.04998378]
[1723716375726,0.05386218,142.01,141.99,3.57068378]
[1723716376722,0.05386218,142.01,142.0,3.5205]
[1723716379125,4.54,142.04,142.02,3.5199]
[1723716379535,33.82,142.07,142.02,3.5199]
[1723716379831,3.5194,142.05,142.02,3.5199]
[1723716380218,3.5191,142.06,142.03,3.5197]
[1723716380420,0.04690761,142.05,142.03,3.5197]
[1723716380820,0.04690761,142.05,142.04,3.5195]
[1723716381231,0.04690761,142.05,142.03,3.5196]
[1723716382427,3.56620761,142.05,142.02,3.57188776]
[1723716383223,0.04690761,142.05,142.02,0.05208776]
[1723716383828,3.5196,142.04,142.02,0.05208776]
[1723716387533,3.56630761,142.05,142.02,3.57198776]
[1723716387730,0.04690761,142.05,142.02,0.05208776]
[1723716388243,0.04690761,142.05,142.03,3.5196]
[1723716390843,0.04690761,142.05,142.04,3.5195]
[1723716395136,13.51,142.11,142.04,13.51]
[1723716395443,13.51,142.12,142.06,13.51]
[1723716395845,3.5181,142.1,142.07,3.5186]
[1723716396537,3.57064377,142.1,142.07,3.57059147]
[1723716396748,0.05254377,142.1,142.08,3.5185]
[1723716398342,0.05254377,142.1,142.09,3.5183]
[1723716398938,0.05254377,142.1,142.09,37.2783]
[1723716399137,4.58,142.17,142.13,3.517]
[1723716399343,3.5165,142.17,142.13,3.517]
[1723716399540,3.5165,142.17,142.11,33.76]
[1723716399934,41.94349686,142.2,142.11,38.34]
[1723716400344,41.94349686,142.2,142.13,3.5172]
[1723716400544,3.5165,142.17,142.13,3.5172]
[1723716400741,3.56415148,142.17,142.14,0.05269953]
[1723716400945,3.56415148,142.17,142.14,3.56969953]
[1723716401146,3.5165,142.16,142.14,0.05269953]
[1723716401444,0.04765148,142.17,142.14,3.56969953]
[1723716401740,3.5165,142.16,142.14,0.05269953]
[1723716401938,0.04765148,142.17,142.14,0.05269953]
[1723716402144,0.04765148,142.17,142.14,3.56959953]
[1723716402841,3.56405148,142.17,142.14,3.56959953]
[1723716403239,0.04765148,142.17,142.15,3.5166]
[1723716403438,0.04765148,142.17,142.14,0.05269953]
[1723716404143,0.04765148,142.17,142.16,3.5165]
[1723716406141,3.5149,142.23,142.15,38.34]
[1723716406642,3.5149,142.23,142.19,3.5156]
[1723716407445,0.04451974,142.22,142.2,0.05159494]
[1723716408849,3.55951974,142.22,142.2,0.05159494]
[1723716409242,3.5153,142.21,142.2,0.05159494]
[1723716409550,0.04451974,142.22,142.2,0.05159494]
[1723716410345,0.04451974,142.22,142.21,3.5153]
[1723716413052,0.04451974,142.22,142.2,3.56699494]
[1723716414157,0.04451974,142.22,142.21,3.5153]
[1723716414855,0.04451974,142.22,142.2,3.56699494]
[1723716415050,0.04451974,142.22,142.2,0.05159494]
[1723716415554,3.5153,142.21,142.2,0.05159494]
[1723716417548,37.20399061,142.21,142.11,2.6273]
[1723716417750,33.76,142.18,142.12,3.5174]
[1723716418149,3.5168,142.15,142.12,3.5174]
[1723716418854,0.05044374,142.15,142.12,0.05044857]
[1723716419451,3.5173,142.13,142.12,0.05044857]
[1723716421553,0.05044374,142.15,142.12,0.05044857]
[1723716421755,4.52,142.14,142.12,0.05044857]
[1723716422061,0.05044374,142.15,142.12,0.05044857]
[1723716422254,0.05044374,142.15,142.13,3.5173]
[1723716422955,0.05044374,142.15,142.14,3.517]
[1723716423152,0.05044374,142.15,142.12,0.05044857]
[1723716424154,3.56724374,142.15,142.12,3.56784857]
[1723716424352,0.05044374,142.15,142.12,0.05044857]
[1723716424758,3.5173,142.13,142.12,0.05044857]
[1723716424957,0.05044374,142.15,142.12,0.05044857]
[1723716425257,3.5172,142.14,142.12,0.05044857]
[1723716425449,0.05044374,142.15,142.12,0.05044857]
[1723716425651,3.5182,142.1,142.06,1.2601]
[1723716425852,4.52,142.13,142.06,1.2601]
[1723716426050,4.52,142.13,142.06,35.0201]
[1723716426256,8.0374,142.13,142.06,35.0201]
[1723716426451,4.52,142.13,142.08,3.5185]
[1723716426858,3.5175,142.12,142.06,35.0201]
[1723716427057,4.52,142.15,142.08,33.76]
[1723716427263,0.05229705,142.12,142.09,0.05059004]
[1723716427664,0.05229705,142.12,142.11,3.5178]
[1723716429463,0.05229705,142.12,142.1,3.518]
[1723716430061,0.05229705,142.12,142.11,3.5178]
[1723716431964,0.05229705,142.12,142.1,3.5179]
[1723716432862,0.05229705,142.12,142.11,3.5178]
[1723716434962,38.48737017,142.21,142.1,33.76]
[1723716435173,4.52,142.19,142.12,33.76]
[1723716435568,8.036,142.19,142.15,3.5166]
[1723716435766,337.0,142.26,142.16,33.76]
[1723716435973,38.36,142.26,142.16,33.76]
[1723716436170,3.515,142.23,142.19,3.5158]
[1723716436381,0.0448221,142.21,142.19,3.5682222]
[1723716436881,0.0448221,142.21,142.2,3.5155]
[1723716437770,1.2906,142.29,142.2,33.76]
[1723716438075,5.8906,142.29,142.2,33.76]
[1723716438271,3.5142,142.26,142.2,33.76]
[1723716438876,0.04847798,142.24,142.22,0.04749613]
[1723716439769,0.04847798,142.24,142.23,3.5147]
[1723716440463,0.04847798,142.24,142.22,0.04749613]
[1723716440464,0.04847798,142.24,142.22,3.56249613]
[1723716441572,0.04847798,142.24,142.23,3.5148]
[1723716441968,0.04847798,142.24,142.22,0.04749613]
[1723716442370,0.04847798,142.24,142.22,3.56239613]
[1723716443777,0.04847798,142.24,142.22,0.04749613]
[1723716443975,0.04847798,142.24,142.23,37.2748]
[1723716445174,0.04847798,142.24,142.22,0.04749613]
[1723716445774,3.56317798,142.24,142.22,0.04749613]
[1723716447681,3.5148,142.23,142.22,0.04749613]
[1723716448983,3.56317798,142.24,142.22,0.04749613]
[1723716453089,0.04847798,142.24,142.22,0.04749613]
[1723716453288,0.04847798,142.24,142.22,3.56259613]
[1723716454187,0.04847798,142.24,142.23,3.5148]
[1723716457090,0.04847798,142.24,142.22,3.56249613]
[1723716458790,0.04847798,142.24,142.22,0.04749613]
[1723716459192,3.5148,142.23,142.22,0.04749613]
[1723716467194,3.56317798,142.24,142.22,0.04749613]
[1723716469997,3.5148,142.23,142.22,0.04749613]
[1723716474396,0.04847798,142.24,142.22,0.04749613]
[1723716474797,0.04847798,142.24,142.22,3.56239613]
[1723716475696,3.5148,142.23,142.22,0.04749613]
[1723716478000,13.5,142.23,142.16,4.52]
[1723716478297,13.5,142.21,142.14,13.5]
[1723716478604,18.02,142.2,142.12,18.02]
[1723716479001,3.5165,142.17,142.13,3.5171]
[1723716479206,3.5165,142.17,142.15,0.04667787]
[1723716479207,0.05051802,142.17,142.15,0.04667787]
[1723716479699,3.5166,142.16,142.15,0.04667787]
[1723716481804,3.56691802,142.17,142.15,0.04667787]
[1723716481990,0.05051802,142.17,142.15,0.04667787]
[1723716482299,3.5166,142.16,142.15,0.04667787]
[1723716490095,17.0166,142.16,142.15,0.04667787]
[1723716490296,21.5366,142.16,142.15,0.04667787]
[1723716496110,8.0366,142.16,142.15,0.04667787]
[1723716496716,3.5166,142.16,142.15,0.04667787]
[1723716497014,3.56701802,142.17,142.15,0.04667787]
[1723716497505,3.5166,142.16,142.15,0.04667787]
[1723716499309,17.0166,142.16,142.15,0.04667787]
[1723716506713,3.5166,142.16,142.15,0.04667787]
[1723716507523,0.05051802,142.17,142.15,0.04667787]
[1723716507918,0.05051802,142.17,142.15,3.56337787]
[1723716508214,0.05051802,142.17,142.15,0.04667787]
[1723716508616,3.56681802,142.17,142.15,0.04667787]
[1723716509211,0.05051802,142.17,142.15,3.56347787]
[1723716510210,3.56701802,142.17,142.15,0.04667787]
[1723716514413,3.5166,142.16,142.15,0.04667787]
[1723716515728,17.0166,142.16,142.15,0.04667787]
[1723716516130,3.58554263,142.15,142.06,3.8169]
[1723716516326,13.5,142.12,142.08,3.5184]
[1723716516629,17.0177,142.12,142.06,17.3169]
[1723716517024,4.5,142.13,142.09,3.5182]
[1723716517224,0.04731758,142.1,142.09,17.0182]
[1723716522127,13.5,142.17,142.09,13.5]
[1723716522330,4.5,142.16,142.11,13.5]
[1723716522523,3.5171,142.14,142.11,13.5]
[1723716522727,3.5171,142.14,142.11,3.5177]
[1723716523332,3.57032542,142.14,142.11,3.56271453]
[1723716524132,3.5173,142.13,142.11,3.56271453]
[1723716524330,3.5173,142.13,142.11,0.04501453]
[1723716525236,5.54,142.12,142.11,0.04501453]
[1723716526431,5.54,142.12,142.11,3.56281453]
[1723716526628,5.54,142.12,142.11,17.06281453]
[1723716526933,0.05322542,142.14,142.11,13.54501453]
[1723716527130,0.05322542,142.14,142.13,17.0173]
[1723716527334,4.5,142.19,142.13,13.5]
[1723716527635,8.016,142.19,142.16,3.5164]
[1723716528137,3.5157,142.2,142.17,3.5162]
[1723716528334,4.5,142.21,142.17,13.5]
[1723716528531,6.78,142.19,142.18,13.5]
[1723716528833,6.78,142.19,142.18,3.5161]
[1723716529335,9.02,142.19,142.18,3.5161]
[1723716530439,9.02,142.19,142.17,3.56958286]
[1723716534342,9.02,142.19,142.17,0.05338286]
[1723716534938,9.02,142.19,142.17,3.56968286]
[1723716538041,9.02,142.19,142.18,3.5161]
[1723716538346,9.02,142.19,142.17,0.05338286]
[1723716538546,9.02,142.19,142.18,3.5161]
[1723716539135,9.02,142.19,142.18,17.0161]
[1723716539839,0.05192767,142.2,142.19,3.5158]
[1723716541741,2.48192767,142.2,142.19,3.5158]
[1723716542544,1.38212767,142.2,142.19,3.5158]
[1723716542750,0.54512767,142.2,142.19,3.5158]
[1723716557857,0.54512767,142.2,142.17,13.55338286]
[1723716558860,0.54512767,142.2,142.19,3.5158]
[1723716559261,0.54512767,142.2,142.18,3.516]
[1723716562459,4.06092767,142.2,142.17,17.06958286]
[1723716566266,4.06092767,142.2,142.17,13.55338286]
[1723716566855,0.54512767,142.2,142.17,13.55338286]
[1723716567061,0.54512767,142.2,142.17,0.05338286]
[1723716568067,3.5162,142.18,142.15,3.5167]
[1723716568363,3.5162,142.18,142.12,7.98403829]
[1723716568364,13.5,142.19,142.12,3.5174]
[1723716568559,1.2375,142.17,142.11,13.5]
[1723716569466,0.0473833,142.15,142.13,0.04729932]
[1723716569768,0.0473833,142.15,142.13,3.56459932]
[1723716570266,0.0473833,142.15,142.14,3.5171]
[1723716570569,0.0473833,142.15,142.14,17.0171]
[1723716573964,3.516,142.19,142.14,17.0171]
[1723716573965,1.2565,142.21,142.19,3.5157]
[1723716574563,1.2565,142.21,142.18,17.016]
[1723716575370,1.30487351,142.21,142.18,17.07005778]
[1723716575971,1.30487351,142.21,142.19,3.5157]
[1723716576166,0.04837351,142.21,142.18,13.55405778]
[1723716576973,0.04837351,142.21,142.19,3.5157]
[1723716579272,0.04837351,142.21,142.18,17.06995778]
[1723716579472,0.04837351,142.21,142.18,13.55405778]
[1723716579875,0.04837351,142.21,142.19,3.5158]
[1723716583980,0.04837351,142.21,142.18,3.57005778]
[1723716584578,0.04837351,142.21,142.19,3.5158]
[1723716585684,0.04837351,142.21,142.18,0.05405778]
[1723716585685,3.56377351,142.21,142.18,3.57005778]
[1723716585878,0.04837351,142.21,142.18,3.57005778]
[1723716587683,3.56377351,142.21,142.18,3.57005778]
[1723716587887,0.04837351,142.21,142.18,3.57005778]
[1723716589487,3.56367351,142.21,142.18,3.57005778]
[1723716591185,3.5156,142.2,142.18,0.05405778]
[1723716591389,0.04837351,142.21,142.18,0.05405778]
[1723716591692,21.16641313,142.21,142.18,0.05405778]
[1723716591884,7.61803962,142.2,142.18,0.05405778]
[1723716592196,21.11803962,142.2,142.18,0.05405778]
[1723716592394,13.5,142.2,142.18,0.05405778]
[1723716592585,7.61454542,142.19,142.18,0.05405778]
[1723716593090,11.13034542,142.19,142.18,0.05405778]
[1723716595189,3.5158,142.19,142.18,0.05405778]
[1723716595390,11.12806424,142.19,142.18,0.05405778]
[1723716599190,24.62806424,142.19,142.13,17.86]
[1723716599392,24.62806424,142.19,142.13,13.5]
[1723716599393,7.61226424,142.18,142.13,13.5]
[1723716599593,21.11226424,142.18,142.11,13.5]
[1723716599896,7.61226424,142.17,142.11,13.5]
[1723716600096,8.90076424,142.17,142.11,13.5]
[1723716600291,7.61226424,142.16,142.11,13.5]
[1723716600495,0.04753768,142.15,142.13,0.05259064]
[1723716602089,0.04753768,142.15,142.13,13.55259064]
[1723716602291,0.04753768,142.15,142.14,13.5]
[1723716602592,0.04753768,142.15,142.14,17.0171]
[1723716604498,0.04753768,142.15,142.13,17.06979064]
[1723716605094,0.04753768,142.15,142.13,13.55259064]
[1723716605690,0.04753768,142.15,142.14,3.5171]
[1723716608398,0.04753768,142.15,142.14,17.0171]